bitfinex/quotes_ETHUSD_20250422
["timestamp","ask_amount","ask_price","bid_price","bid_amount"]
[1745357477527,8.534,1723.6,1722.9,1.8]
[1745357477903,1.9128,1723.8,1722.9,1.8]
[1745357478106,8.535,1723.7,1722.9,1.8]
[1745357478497,5.80198022,1723.6,1722.3,3.0]
[1745357478738,8.535,1723.7,1722.4,0.3]
[1745357479033,8.535,1723.7,1722.4,3.3]
[1745357479408,5.80182956,1723.6,1722.4,3.3]
[1745357479593,8.535,1723.5,1722.4,3.3]
[1745357480594,8.535,1723.5,1722.4,9.10581318]
[1745357480794,9.3885,1723.5,1722.5,0.91058132]
[1745357481423,0.8279,1723.4,1722.4,3.3]
[1745357481722,9.3885,1723.5,1722.4,3.3]
[1745357481890,9.3885,1723.5,1722.5,0.05803969]
[1745357482087,15.19088356,1723.5,1722.5,0.05803969]
[1745357482298,9.3885,1723.5,1722.6,0.31309949]
[1745357482523,0.93885,1723.4,1722.6,2.11309949]
[1745357483021,8.535,1723.5,1722.6,2.11309949]
[1745357483225,8.535,1723.5,1722.7,0.31309949]
[1745357483390,14.33733054,1723.5,1722.7,0.31309949]
[1745357483722,8.535,1723.5,1722.7,0.31309949]
[1745357483901,8.535,1723.5,1722.8,0.37113621]
[1745357484697,8.535,1723.5,1722.9,0.31309949]
[1745357484911,9.3885,1723.5,1722.9,0.31309949]
[1745357485125,15.19065408,1723.5,1722.9,0.31309949]
[1745357485312,9.3885,1723.5,1723.0,0.31309949]
[1745357485919,6.63058154,1723.4,1723.0,0.31309949]
[1745357486119,0.8279,1723.4,1723.1,0.31309949]
[1745357486934,0.8279,1723.4,1722.6,0.05804426]
[1745357487356,2.42976848,1723.4,1722.6,0.05804426]
[1745357487505,2.42976848,1723.4,1722.4,3.3]
[1745357488124,2.42976848,1723.4,1722.7,1.8]
[1745357488339,8.23244756,1723.4,1722.5,0.31366277]
[1745357488538,14.03521275,1723.4,1722.5,0.31366277]
[1745357488773,7.2063423,1723.3,1722.5,0.31366277]
[1745357489036,7.2063423,1723.3,1722.6,0.31366277]
[1745357489037,1.40352128,1723.3,1722.6,0.31366277]
[1745357489235,5.8029745,1723.3,1722.6,0.31366277]
[1745357489443,11.60605609,1723.3,1722.6,0.31366277]
[1745357489736,5.8032522,1723.2,1722.7,0.31366277]
[1745357489979,8.23241108,1723.4,1722.8,0.31382161]
[1745357490283,5.80282749,1723.3,1722.8,0.31382161]
[1745357490877,5.80282749,1723.3,1722.9,0.31382161]
[1745357491256,6.38345819,1723.2,1722.9,0.31382161]
[1745357491578,0.58028275,1723.2,1722.9,0.31382161]
[1745357491878,5.80295393,1723.3,1722.2,0.42699396]
[1745357492061,5.80318871,1723.2,1722.1,3.0]
[1745357492261,5.80349875,1723.1,1722.1,3.0]
[1745357492571,5.80296538,1723.3,1722.2,0.31385891]
[1745357492771,8.23230437,1723.4,1722.2,2.11385891]
[1745357492932,0.8279,1723.4,1722.4,3.0]
[1745357493374,6.63048808,1723.4,1722.5,0.31385891]
[1745357493672,0.8279,1723.4,1722.5,0.31385891]
[1745357493973,8.535,1723.5,1722.6,0.31385891]
[1745357494345,8.535,1723.5,1722.6,0.74990642]
[1745357494648,8.535,1723.5,1722.7,0.3136357]
[1745357494843,5.80256251,1723.4,1722.7,0.3136357]
[1745357495038,15.19076294,1723.5,1722.8,0.31367]
[1745357495549,20.99320328,1723.5,1722.2,3.0]
[1745357495750,5.80249711,1723.4,1722.2,3.0]
[1745357496177,5.80335125,1723.2,1722.1,0.42486377]
[1745357496469,0.58033513,1723.2,1722.3,0.3137864]
[1745357496770,5.802671,1723.4,1722.4,0.05804809]
[1745357497070,19.128,1723.9,1722.8,3.0]
[1745357497450,8.384,1723.8,1722.9,0.3137864]
[1745357497759,8.384,1723.8,1722.9,5.1137864]
[1745357498069,8.384,1723.8,1723.0,0.51137864]
[1745357498374,8.384,1723.8,1723.1,0.3137864]
[1745357499052,8.384,1723.8,1723.0,0.3137864]
[1745357499736,8.384,1723.8,1722.9,0.3137864]
[1745357499938,0.3489181,1724.6,1723.5,3.0]
[1745357500165,0.3489181,1724.6,1724.2,3.0]
[1745357500375,0.005,1725.1,1725.0,5.79710144]
[1745357500589,0.4035264,1726.0,1725.0,5.79710144]
[1745357500590,0.4035264,1726.0,1725.2,5.79616354]
[1745357500743,0.23462757,1726.0,1725.6,5.79503217]
[1745357500941,8.385,1726.6,1725.6,5.79507819]
[1745357501182,19.134,1726.7,1725.7,9.1083974]
[1745357501382,19.134,1726.7,1725.8,0.91083974]
[1745357501593,6.55097372,1727.4,1725.8,7.45681346]
[1745357501795,0.005,1727.4,1726.5,3.0]
[1745357501978,8.389,1727.4,1726.3,3.0]
[1745357502182,8.389,1727.4,1726.1,12.33924433]
[1745357502388,0.8389,1727.3,1726.4,0.31065103]
[1745357502696,1.6058,1727.3,1726.2,1.8]
[1745357503078,1.6058,1727.3,1726.3,0.05791518]
[1745357503284,1.6058,1727.3,1725.9,3.0]
[1745357503483,1.6058,1727.3,1725.8,0.91083974]
[1745357503791,1.6058,1727.3,1725.9,0.0579293]
[1745357504100,1.6058,1727.3,1725.7,0.05792928]
[1745357505267,0.7669,1727.2,1725.7,0.05792928]
[1745357505470,0.7669,1727.2,1725.6,3.0]
[1745357505471,6.54597372,1727.1,1725.6,3.0]
[1745357506290,0.7669,1726.9,1725.2,31.47423591]
[1745357506457,8.379,1726.8,1725.3,3.14742359]
[1745357506652,8.379,1726.8,1725.3,5.79590986]
[1745357506895,0.005,1727.4,1726.5,6.54597372]
[1745357507064,0.7669,1729.1,1727.6,5.78837693]
[1745357507260,0.7669,1729.1,1728.4,5.78567467]
[1745357507484,0.5,1729.9,1729.1,5.78314804]
[1745357507658,0.5,1729.9,1729.0,8.783531]
[1745357507659,0.5,1729.9,1729.0,3.0]
[1745357508168,0.5,1729.9,1728.5,0.57856747]
[1745357508369,0.5,1729.9,1728.4,0.44302022]
[1745357508681,0.13645019,1729.3,1728.5,6.54597372]
[1745357508853,0.13645019,1729.3,1728.6,3.0]
[1745357509056,0.13645019,1729.3,1728.4,0.44141618]
[1745357509057,8.635,1729.2,1728.4,0.44141618]
[1745357509364,8.635,1729.2,1728.2,6.54597372]
[1745357509365,0.99842013,1729.1,1728.5,0.05783882]
[1745357509777,8.76992013,1729.1,1728.5,0.05783882]
[1745357509957,8.635,1729.1,1728.5,0.05783882]
[1745357510157,0.13415497,1729.0,1728.5,0.05783882]
[1745357510387,0.2978688,1729.5,1729.1,0.05779188]
[1745357510892,0.13721509,1729.4,1729.1,0.05779188]
[1745357511358,0.13721509,1729.4,1729.1,0.7967069]
[1745357511559,0.13721509,1729.4,1729.1,0.49092771]
[1745357513199,0.13721509,1729.4,1729.1,0.05779188]
[1745357514261,0.7669,1729.3,1729.1,0.05779188]
[1745357514705,19.21742576,1729.2,1729.1,0.05779188]
[1745357514936,21.21585834,1729.2,1729.1,0.05779188]
[1745357516513,19.21742576,1729.2,1728.2,0.49995693]
[1745357516805,19.21742576,1729.2,1728.2,3.49995693]
[1745357516806,8.621,1729.1,1728.2,3.49995693]
[1745357517170,0.12715056,1729.0,1728.2,3.49995693]
[1745357517671,0.12715056,1729.0,1727.8,9.11675491]
[1745357517890,0.12715056,1729.0,1727.9,0.05786277]
[1745357518168,1.00196562,1729.0,1727.9,0.05786277]
[1745357518370,0.8244,1728.9,1727.8,9.11675491]
[1745357518570,0.12587506,1728.8,1727.4,9.11675491]
[1745357518791,0.12587506,1728.8,1727.5,3.05787476]
[1745357518998,0.19461123,1728.8,1727.4,9.11675491]
[1745357519404,0.19461123,1728.8,1727.4,9.06675491]
[1745357519791,0.8244,1728.7,1727.4,9.06675491]
[1745357520194,0.19378444,1728.6,1727.0,9.11675491]
[1745357520391,8.62,1728.5,1727.1,0.91167549]
[1745357520801,0.19250836,1728.4,1727.1,0.91167549]
[1745357521016,0.8244,1728.2,1727.0,9.11675491]
[1745357521386,0.19059367,1728.1,1727.0,9.11675491]
[1745357522834,0.19059367,1728.1,1726.6,9.11675491]
[1745357522835,0.8244,1728.0,1726.6,9.11675491]
[1745357522988,0.8244,1727.7,1726.2,9.11675491]
[1745357523191,0.8244,1727.7,1726.3,0.91167549]
[1745357523423,0.16784418,1727.6,1725.9,9.11675491]
[1745357523620,0.8244,1727.5,1725.9,9.11675491]
[1745357523824,0.8244,1727.2,1725.9,9.11675491]
[1745357524027,0.8244,1726.9,1725.3,9.11675491]
[1745357524436,0.8244,1726.7,1725.3,9.11675491]
[1745357524730,6.147,1726.5,1724.3,0.3]
[1745357524899,0.8244,1726.0,1724.0,9.11675491]
[1745357525116,0.97702162,1725.9,1724.0,9.11675491]
[1745357525301,0.8244,1725.6,1724.1,0.05798935]
[1745357525523,19.086,1725.5,1724.0,9.11675491]
[1745357525709,0.8244,1725.4,1724.0,9.11675491]
[1745357525906,0.8244,1725.4,1724.1,0.96966812]
[1745357526093,0.8244,1725.2,1723.6,9.11675491]
[1745357526302,3.8244,1725.0,1723.4,9.11675491]
[1745357526627,0.94995885,1724.9,1723.4,9.11675491]
[1745357526809,0.94995885,1724.9,1723.1,9.11675491]
[1745357527005,0.94995885,1724.9,1723.2,3.05801832]
[1745357527208,0.8244,1724.6,1721.5,8.622]
[1745357527416,0.8244,1724.3,1722.5,0.05804142]
[1745357527608,8.622,1724.2,1722.8,9.11675491]
[1745357527802,8.7545826,1724.2,1722.8,9.11675491]
[1745357528151,8.7545826,1724.2,1722.9,0.05802673]
[1745357528307,0.8244,1724.0,1722.5,0.05803435]
[1745357528506,0.8244,1724.0,1722.9,3.0]
[1745357528715,0.8244,1724.0,1723.1,5.80321296]
[1745357529019,8.627,1724.2,1723.3,5.80264215]
[1745357529217,0.8244,1724.4,1723.6,3.0]
[1745357529433,0.8244,1724.4,1723.7,0.35800015]
[1745357529607,0.8244,1724.4,1723.8,3.0]
[1745357529808,8.627,1724.6,1723.8,3.0]
[1745357530740,8.627,1724.6,1723.7,6.1013215]
[1745357530741,9.4514,1724.8,1723.7,6.10128762]
[1745357531241,9.4514,1724.8,1723.8,0.05799181]
[1745357531447,0.8244,1724.8,1723.8,1.19605594]
[1745357531937,0.8244,1724.8,1723.8,1.25404777]
[1745357532116,0.8244,1724.8,1723.0,9.11675491]
[1745357532315,0.8021,1724.7,1723.0,9.11675491]
[1745357532731,0.8021,1724.7,1723.1,0.05801627]
[1745357533045,0.8021,1724.7,1723.1,3.0]
[1745357533347,0.8021,1724.7,1723.2,5.80303294]
[1745357533640,0.8021,1724.7,1723.3,0.63831431]
[1745357533841,0.8021,1724.7,1723.3,0.05801102]
[1745357534045,0.8021,1724.7,1723.0,3.43767569]
[1745357534345,0.8021,1724.7,1723.0,3.0]
[1745357534546,0.8021,1724.7,1723.0,8.80365526]
[1745357534843,0.8021,1724.7,1723.0,3.0]
[1745357535039,0.8021,1724.7,1723.1,0.35801771]
[1745357535210,0.8021,1724.7,1723.1,0.3]
[1745357536542,0.8021,1724.7,1723.7,3.0]
[1745357536742,0.8021,1724.7,1723.8,3.0]
[1745357536950,0.8021,1724.7,1723.8,3.05799539]
[1745357537245,0.8021,1724.7,1723.9,0.30579954]
[1745357537946,0.8021,1724.7,1723.5,3.0]
[1745357538146,0.8021,1724.7,1723.2,4.8]
[1745357538315,0.8021,1724.7,1723.2,1.8]
[1745357539655,0.8021,1724.7,1723.3,3.0]
[1745357539865,0.8021,1724.7,1723.3,0.0580106]
[1745357540022,0.8021,1724.7,1723.4,8.80240552]
[1745357540221,0.8021,1724.7,1723.5,3.0580032]
[1745357541161,0.8021,1724.7,1723.5,9.02650477]
[1745357541362,0.8021,1724.7,1723.9,3.0]
[1745357541558,0.8021,1725.0,1723.9,3.0]
[1745357541729,0.8021,1725.0,1724.2,3.0]
[1745357544249,0.8021,1725.0,1724.3,0.05798208]
[1745357544836,0.8021,1725.0,1724.2,3.0]
[1745357545770,0.8021,1725.0,1724.2,3.44337222]
[1745357547337,0.8021,1725.0,1724.2,0.44337222]
[1745357547542,0.8021,1725.0,1724.0,3.3]
[1745357547850,0.8021,1725.0,1724.1,0.33]
[1745357549131,0.8021,1725.0,1724.1,0.7683145]
[1745357549335,0.8021,1725.0,1724.1,6.56842375]
[1745357549536,0.8021,1725.0,1724.2,0.05798003]
[1745357552000,0.8021,1725.0,1724.3,0.31068513]
[1745357552172,0.7901,1725.9,1725.3,3.0]
[1745357552535,0.7901,1725.9,1725.4,0.3]
[1745357552676,0.7901,1725.9,1725.2,3.0]
[1745357552873,0.7901,1725.9,1725.3,0.05794511]
[1745357553194,0.7901,1725.9,1725.4,0.05794511]
[1745357553402,0.7901,1725.9,1725.5,0.31173643]
[1745357553597,0.7901,1725.9,1724.4,8.57739702]
[1745357553781,9.0842,1725.8,1724.5,0.8577397]
[1745357554092,0.8172,1725.7,1724.5,0.8577397]
[1745357554254,0.8172,1725.7,1724.2,19.114]
[1745357554455,0.8172,1725.7,1724.3,3.05797701]
[1745357554652,6.52872335,1724.8,1723.0,0.3117]
[1745357555000,6.147,1724.4,1722.6,8.5777]
[1745357555155,0.8172,1724.2,1722.6,0.3117]
[1745357555356,6.61976274,1723.4,1722.4,0.5]
[1745357555555,0.05797717,1723.3,1722.4,0.85]
[1745357555999,0.05797717,1723.3,1722.4,3.5]
[1745357556339,0.8172,1723.4,1722.6,5.80496863]
[1745357556463,0.8172,1723.4,1722.7,8.80461129]
[1745357556791,0.8172,1723.4,1722.9,3.0]
[1745357557364,0.8172,1723.4,1722.6,3.0]
[1745357557620,0.05797717,1723.3,1722.6,9.14654317]
[1745357557757,0.05797717,1723.3,1722.4,12.83435955]
[1745357557758,0.8172,1723.2,1722.4,0.5]
[1745357558074,0.8172,1723.0,1722.4,0.5]
[1745357558276,0.8172,1722.8,1722.4,0.5]
[1745357558476,0.05797717,1722.7,1722.4,0.5]
[1745357558998,0.8172,1722.8,1722.4,0.5]
[1745357558999,0.87517717,1722.8,1722.4,0.5]
[1745357560282,2.966276,1725.9,1723.8,2.82271669]
[1745357560481,5.79106599,1726.8,1724.5,0.55]
[1745357560482,0.6864,1726.1,1724.5,0.55]
[1745357560686,0.6864,1726.1,1724.9,3.1308]
[1745357560889,0.6864,1726.1,1724.9,3.0]
[1745357561062,0.6864,1726.1,1724.5,8.815]
[1745357561063,5.79379765,1726.0,1725.0,0.31308]
[1745357561264,0.6864,1726.1,1725.1,0.05795815]
[1745357561489,0.6864,1726.1,1725.1,5.79655658]
[1745357561663,8.818,1726.0,1724.8,3.0]
[1745357561863,8.818,1726.0,1725.2,3.0]
[1745357562070,8.818,1726.0,1725.3,0.05794648]
[1745357562276,0.6864,1726.1,1725.3,0.05794648]
[1745357562456,0.6864,1726.1,1725.4,8.7957575]
[1745357562663,19.123,1726.3,1725.6,3.0]
[1745357562863,19.123,1726.3,1725.7,0.05793476]
[1745357563597,19.8913,1726.3,1725.7,0.05793476]
[1745357563914,19.8913,1726.3,1725.4,0.05793477]
[1745357564621,19.8913,1726.3,1725.4,3.05793477]
[1745357564915,21.88043,1726.3,1725.4,9.73902262]
[1745357565122,21.88043,1726.3,1725.4,0.94332587]
[1745357565295,0.1177557,1726.2,1725.4,0.94332587]
[1745357565924,0.1177557,1726.2,1725.5,0.30917105]
[1745357566088,0.1177557,1726.2,1725.6,0.05794187]
[1745357566418,2.31757427,1726.2,1725.6,0.05794187]
[1745357566620,2.31757427,1726.2,1725.4,0.05794188]
[1745357566821,2.31757427,1726.2,1725.4,3.05794188]
[1745357566995,2.31757427,1726.2,1725.4,0.05794188]
[1745357567195,2.31757427,1726.2,1725.5,0.30906255]
[1745357567397,2.31757427,1726.2,1725.6,0.05794189]
[1745357567591,0.1177557,1726.2,1725.6,0.05794189]
[1745357568085,0.1177557,1726.2,1725.3,0.49595271]
[1745357568283,0.1177557,1726.2,1724.9,9.59145408]
[1745357568684,0.7683,1726.1,1725.0,0.30890082]
[1745357568884,0.7683,1726.1,1725.1,0.05795332]
[1745357569137,0.11585941,1726.0,1725.1,0.05795332]
[1745357569294,8.812,1725.9,1725.1,0.05795332]
[1745357569493,8.812,1725.9,1724.9,15.82396684]
[1745357569494,9.70478594,1725.9,1724.9,0.4425]
[1745357569808,9.70478594,1725.9,1724.5,9.59145408]
[1745357569809,5.79507659,1725.7,1724.5,9.59145408]
[1745357570131,0.90425909,1725.6,1724.6,3.0]
[1745357570416,0.90425909,1725.6,1724.7,0.36709384]
[1745357570625,1.57419266,1725.6,1724.7,0.36709384]
[1745357570922,1.57419266,1725.6,1724.7,0.05796946]
[1745357571125,0.90425909,1725.6,1724.8,0.30918119]
[1745357571894,0.90425909,1725.6,1724.9,0.30918119]
[1745357572706,6.69946407,1725.6,1724.6,3.05796945]
[1745357572906,0.90425909,1725.6,1724.6,3.05796945]
[1745357573322,1.57417918,1725.6,1724.7,0.30936868]
[1745357574040,7.36939519,1725.6,1724.7,0.30936868]
[1745357574338,7.36939519,1725.6,1724.6,3.0]
[1745357574647,7.36939519,1725.6,1724.5,9.14895408]
[1745357574852,0.90425909,1725.6,1724.6,3.05797607]
[1745357575157,0.13595909,1725.6,1725.0,3.0]
[1745357575333,0.13595909,1725.6,1725.3,3.0]
[1745357575531,9.6326,1725.9,1725.4,0.05794659]
[1745357576099,8.812,1725.9,1725.4,0.05794659]
[1745357576295,0.8206,1726.2,1725.5,5.79539481]
[1745357576507,19.123,1726.3,1725.8,0.5829]
[1745357576733,19.123,1726.3,1725.9,0.05792748]
[1745357576954,8.533,1726.4,1725.9,0.05792748]
[1745357577510,8.533,1726.4,1725.9,3.05792748]
[1745357577707,0.005,1727.2,1726.5,9.3257]
[1745357578044,0.005,1727.2,1726.7,9.14895408]
[1745357578548,0.005,1727.2,1726.8,3.0]
[1745357578716,0.005,1727.2,1726.8,8.79088431]
[1745357578931,0.005,1727.2,1726.9,0.87908843]
[1745357579135,0.005,1727.2,1726.8,3.0]
[1745357579530,0.005,1727.2,1726.9,0.05789534]
[1745357580031,0.005,1727.2,1726.8,3.0]
[1745357580256,0.005,1727.2,1726.4,0.4425]
[1745357580423,0.005,1727.2,1726.4,3.4425]
[1745357580623,0.005,1727.2,1726.5,0.40215303]
[1745357581420,0.7927,1727.1,1726.5,0.40215303]
[1745357581769,0.7927,1727.1,1726.3,9.14895408]
[1745357582075,0.7927,1727.1,1726.0,8.529]
[1745357582363,0.7927,1727.1,1725.9,10.47109978]
[1745357582539,0.7927,1727.1,1726.1,9.14895408]
[1745357582944,0.7927,1727.1,1726.2,3.05791342]
[1745357583269,1.72537,1727.1,1726.2,4.27860017]
[1745357584338,0.7927,1727.1,1726.2,4.27860017]
[1745357584737,0.7927,1727.1,1726.2,10.07165587]
[1745357584940,0.7927,1727.1,1726.6,3.0]
[1745357585141,0.005,1727.2,1726.9,3.0]
[1745357585368,0.005,1727.2,1727.0,6.5646305]
[1745357585674,0.005,1727.2,1727.0,7.22109355]
[1745357586072,0.005,1727.2,1727.0,7.60649854]
[1745357586928,0.005,1727.2,1726.8,6.50674365]
[1745357587268,0.005,1727.2,1726.9,0.05789727]
[1745357587472,0.005,1727.2,1726.8,6.50674365]
[1745357587965,0.005,1727.2,1727.1,5.79005268]
[1745357588165,0.005,1727.2,1727.1,6.50674365]
[1745357588462,0.005,1727.2,1727.1,14.42342898]
[1745357588842,0.7927,1728.2,1727.4,6.50674365]
[1745357590242,0.7927,1728.2,1727.5,0.30954901]
[1745357591033,0.7927,1728.2,1727.4,6.50674365]
[1745357591726,0.7927,1728.2,1727.5,0.30944347]
[1745357591968,5.78671372,1728.1,1727.5,0.30944347]
[1745357592129,7.51105511,1728.2,1727.4,6.50674365]
[1745357592634,5.78682059,1728.1,1727.4,6.50674365]
[1745357593069,7.51086829,1728.2,1727.4,6.50674365]
[1745357593870,6.57909829,1728.2,1727.4,6.50674365]
[1745357594180,6.56910583,1728.1,1727.4,6.50674365]
[1745357594331,0.7822,1728.1,1727.4,6.50674365]
[1745357595550,6.56908803,1728.1,1727.4,6.50674365]
[1745357595739,12.66908803,1728.1,1727.4,6.50674365]
[1745357596052,13.93612282,1728.1,1727.4,6.50674365]
[1745357596252,8.1491088,1728.1,1727.4,6.50674365]
[1745357596556,13.93613607,1728.1,1727.4,6.50674365]
[1745357596881,5.77910561,1730.4,1729.0,5.78368999]
[1745357597031,6.1,1730.7,1729.0,0.6538]
[1745357597347,6.1,1730.7,1729.1,6.8147603]
[1745357597348,5.78025533,1730.1,1729.1,6.8147603]
[1745357597548,5.7795372,1730.3,1729.1,6.50674365]
[1745357597755,0.12786377,1730.0,1729.1,6.50674365]
[1745357597938,8.523,1730.1,1729.2,0.05782133]
[1745357598138,0.1272268,1729.9,1729.2,0.05782133]
[1745357598343,0.12786377,1730.0,1729.2,0.6564565]
[1745357598555,0.14146031,1729.8,1729.2,0.6564565]
[1745357598753,0.14209736,1729.9,1729.2,3.6564565]
[1745357598955,0.14082319,1729.7,1729.2,3.6564565]
[1745357599153,0.14146031,1729.8,1729.4,6.50674365]
[1745357599365,0.14146332,1729.6,1729.3,0.8]
[1745357599579,8.523,1730.1,1729.3,0.8]
[1745357599732,0.1415755,1729.5,1729.3,0.8]
[1745357600092,0.14093816,1729.4,1729.3,0.8]
[1745357600239,0.14093816,1729.4,1729.3,10.25806665]
[1745357600436,9.3012,1730.4,1729.3,7.30674365]
[1745357600437,8.519,1730.3,1729.3,7.30674365]
[1745357600867,0.14636593,1730.2,1729.3,7.30674365]
[1745357601166,1.01290252,1730.2,1729.3,7.30674365]
[1745357601547,0.14636593,1730.2,1729.3,7.30674365]
[1745357602244,0.14636593,1730.2,1729.4,3.0]
[1745357602477,0.14636593,1730.2,1729.3,7.30674365]
[1745357602664,0.7822,1730.1,1729.3,7.30674365]
[1745357603154,0.14452459,1730.0,1729.3,7.30674365]
[1745357604056,0.14452459,1730.0,1729.6,6.50674365]
[1745357606945,0.14452459,1730.0,1729.9,6.50674365]
[1745357607264,8.516,1730.3,1729.9,6.50674365]
[1745357607470,0.14364104,1730.0,1729.9,6.50674365]
[1745357607630,0.92757,1730.3,1729.9,6.50674365]
[1745357607834,0.14491476,1730.2,1729.6,6.50674365]
[1745357608439,9.2737,1730.4,1729.7,3.0]
[1745357608641,0.14456178,1730.1,1729.7,3.0]
[1745357608842,9.2737,1730.4,1729.7,3.0]
[1745357609072,0.14392488,1730.0,1729.7,3.0]
[1745357609372,2.26494897,1730.4,1729.7,3.0]
[1745357609865,0.14583536,1730.3,1729.6,6.50674365]
[1745357611670,0.14583536,1730.3,1729.7,3.0]
[1745357612567,0.14583536,1730.3,1729.6,6.50674365]
[1745357612941,0.96482462,1730.3,1729.6,6.50674365]
[1745357613671,0.14583536,1730.3,1729.6,6.50674365]
[1745357614064,0.14583536,1730.3,1729.7,1.8]
[1745357614871,0.14583536,1730.3,1729.6,6.50674365]
[1745357618460,0.7597,1730.1,1729.7,0.30712642]
[1745357618668,6.53973343,1730.1,1729.7,0.30712642]
[1745357618864,0.7597,1729.7,1729.0,0.05781887]
[1745357619067,5.78290265,1729.3,1728.5,6.50674365]
[1745357619381,0.7597,1729.4,1728.5,6.50674365]
[1745357619546,6.54320368,1729.1,1728.5,6.50674365]
[1745357619868,0.1343807,1729.0,1728.1,0.6538]
[1745357620084,0.1343807,1729.0,1728.3,6.50674365]
[1745357620390,5.78558743,1728.5,1727.8,6.50674365]
[1745357620560,0.7597,1728.4,1727.8,6.50674365]
[1745357620760,0.88816947,1728.4,1727.8,6.50674365]
[1745357621889,0.88816947,1728.4,1727.1,6.50674365]
[1745357622048,0.7651,1728.1,1727.2,0.7085611]
[1745357622252,8.12571155,1728.0,1727.2,0.7085611]
[1745357622453,5.78788181,1727.8,1727.0,6.50674365]
[1745357622948,5.78788181,1727.8,1726.8,6.50674365]
[1745357622949,5.7885562,1727.6,1726.8,6.50674365]
[1745357623294,14.53083245,1727.5,1726.8,6.50674365]
[1745357623478,8.7421,1727.5,1726.8,6.50674365]
[1745357623684,0.7651,1728.2,1727.4,6.50674365]
[1745357624064,0.1308855,1728.1,1727.5,3.05788171]
[1745357626084,0.1308855,1728.1,1727.5,4.01434425]
[1745357626284,19.06,1728.8,1727.8,3.0]
[1745357626285,8.7441,1728.6,1727.8,3.0]
[1745357626486,8.7441,1728.6,1727.9,0.05786389]
[1745357626487,0.13255321,1728.0,1727.9,0.05786389]
[1745357626856,8.7441,1728.6,1727.9,0.05786389]
[1745357627054,0.13695166,1728.5,1727.9,0.05786389]
[1745357627727,0.13695166,1728.5,1727.9,0.05786758]
[1745357628389,0.13695166,1728.5,1727.9,0.49856469]
[1745357630861,8.7461,1728.6,1727.9,0.49856469]
[1745357631391,0.7651,1728.6,1728.0,6.50674365]
[1745357631604,19.06,1728.8,1728.1,3.05785547]
[1745357631773,19.06,1728.8,1728.2,0.6538]
[1745357632096,19.06,1728.8,1728.3,0.05785505]
[1745357632284,19.06,1728.8,1728.2,0.71165505]
[1745357634908,19.06,1728.8,1728.2,0.05785505]
[1745357635106,21.04251,1728.8,1728.2,0.05785505]
[1745357635408,0.7651,1728.9,1728.2,0.05785505]
[1745357636204,0.12961162,1728.9,1728.6,6.50674365]
[1745357636389,0.12961162,1728.9,1728.7,3.05783844]
[1745357636606,0.7651,1729.5,1728.7,3.05783844]
[1745357637003,0.13844206,1729.4,1728.7,3.05783844]
[1745357637386,0.13844206,1729.4,1728.7,4.01429665]
[1745357639018,0.13844206,1729.4,1728.4,6.50674365]
[1745357639219,0.13844206,1729.4,1728.8,1.8]
[1745357639220,5.78334908,1729.2,1728.8,1.8]
[1745357639426,5.78705805,1728.0,1727.4,0.6538]
[1745357639590,5.78743437,1727.9,1727.4,0.6538]
[1745357639922,5.78743437,1727.9,1727.1,7.16054365]
[1745357640103,5.78689059,1728.1,1727.2,3.71605437]
[1745357640313,5.78765478,1727.9,1727.1,7.16054365]
[1745357640525,0.13013975,1728.1,1727.1,7.16054365]
[1745357640526,5.78715654,1728.0,1727.1,7.5979985]
[1745357640883,7.727,1728.2,1726.2,0.28530395]
[1745357641129,7.727,1728.2,1725.8,0.5829]
[1745357641130,0.7949,1726.8,1726.0,0.71169233]
[1745357641290,0.7949,1726.8,1726.3,0.30923977]
[1745357641712,0.7949,1726.8,1726.1,6.50674365]
[1745357641989,0.7949,1726.8,1726.0,0.6538]
[1745357642518,6.58609159,1726.8,1726.0,0.6538]
[1745357642784,5.79142069,1726.7,1725.7,0.6538]
[1745357643428,0.7949,1726.4,1725.4,0.6538]
[1745357643728,7.729,1726.3,1725.4,0.6538]
[1745357643891,7.729,1726.3,1725.4,3.6538]
[1745357644091,7.729,1726.3,1725.4,1.72779629]
[1745357644309,7.729,1726.3,1725.4,4.72779629]
[1745357644523,7.729,1726.3,1725.5,5.79519409]
[1745357644844,0.7645,1726.8,1726.0,3.0]
[1745357645134,0.7645,1726.8,1726.1,0.6538]
[1745357645633,7.732,1726.9,1726.1,0.6538]
[1745357645842,7.732,1726.9,1726.2,6.50674365]
[1745357645995,7.732,1726.9,1726.3,3.0]
[1745357646334,7.732,1726.9,1726.3,3.05791705]
[1745357646829,7.732,1726.9,1726.3,3.0]
[1745357647588,7.732,1726.9,1726.3,4.05254727]
[1745357648433,26.813,1727.4,1726.5,15.29863148]
[1745357648594,26.813,1727.4,1726.5,9.50674365]
[1745357648922,7.733,1727.4,1726.6,0.05790495]
[1745357649128,7.733,1727.4,1726.7,0.30906948]
[1745357649492,7.733,1727.4,1726.6,0.95646486]
[1745357650339,7.733,1727.4,1726.5,9.50674365]
[1745357650514,13.52217476,1727.4,1726.6,0.05790526]
[1745357650708,7.733,1727.4,1726.6,0.05790526]
[1745357650915,13.52206066,1727.4,1726.6,0.05790526]
[1745357651136,15.52960976,1727.4,1726.6,0.05790526]
[1745357651510,5.79138281,1726.8,1725.6,0.6538]
[1745357651729,5.79284209,1726.3,1725.6,0.6538]
[1745357652036,7.734,1726.2,1725.7,0.30917049]
[1745357652901,0.7645,1726.1,1725.3,3.71174748]
[1745357653143,0.7645,1726.1,1725.4,0.37117475]
[1745357653442,0.7645,1726.1,1725.3,3.71174748]
[1745357653646,0.7645,1726.1,1725.3,4.14719077]
[1745357655031,31.74696403,1726.1,1725.3,0.05794748]
[1745357655226,31.74696403,1726.1,1725.0,0.6538]
[1745357655227,31.74717758,1726.1,1725.0,0.6538]
[1745357655533,5.79479382,1725.7,1725.0,0.6538]
[1745357655748,7.736,1725.6,1724.9,3.0]
[1745357656244,7.736,1725.6,1725.0,0.05796892]
[1745357657892,7.736,1725.6,1724.9,3.0]
[1745357658049,8.5096,1725.6,1724.8,6.50674365]